[Event "Vetern-SM 50+ 2025"]
[Site "Uppsala, Sweden"]
[Date "2025.07.03"]
[Round "6.8"]
[White "Ljung, Rickard"]
[Black "Brandberg, Joakim"]
[Result "1/2-1/2"]
[TimeControl "90 min for 40 move + 30 min with an increment of 30 sec starting move 1"]
[WhiteFideId "1740156"]
[BlackFideId "1712276"]
[WhiteElo "1972"]
[BlackElo "2111"]

1. d4 {[%clk 01:30:58]} {[%emt 00:00:02]} e6 {[%clk 01:30:52]} {[%emt
00:00:08]} 2. Bf4 {[%clk 01:31:12]} {[%emt 00:00:15]} Nf6 {[%clk 01:30:50]}
{[%emt 00:00:32]} 3. e3 {[%clk 01:31:31]} {[%emt 00:00:12]} d5 {[%clk
01:30:43]} {[%emt 00:00:38]} 4. Nd2 {[%clk 01:31:50]} {[%emt 00:00:11]} Bd6
{[%clk 01:31:03]} {[%emt 00:00:09]} 5. Bg3 {[%clk 01:30:31]} {[%emt 00:01:50]}
O-O {[%clk 01:29:13]} {[%emt 00:02:19]} 6. Ngf3 {[%clk 01:30:54]} {[%emt
00:00:07]} c5 {[%clk 01:29:15]} {[%emt 00:00:27]} 7. c3 {[%clk 01:31:08]}
{[%emt 00:00:17]} Qc7 {[%clk 01:24:43]} {[%emt 00:05:01]} 8. Bd3 {[%clk
01:29:41]} {[%emt 00:01:58]} b6 {[%clk 01:24:50]} {[%emt 00:00:23]} 9. Qe2
{[%clk 01:29:23]} {[%emt 00:00:47]} Bb7 {[%clk 01:23:23]} {[%emt 00:01:58]} 10.
Rd1 {[%clk 01:22:04]} {[%emt 00:07:50]} Nbd7 {[%clk 01:21:27]} {[%emt
00:02:24]} 11. Bb1 {[%clk 01:21:43]} {[%emt 00:00:52]} e5 {[%clk 01:17:00]}
{[%emt 00:04:57]} 12. dxe5 {[%clk 01:21:42]} {[%emt 00:00:31]} Nxe5 {[%clk
01:17:22]} {[%emt 00:00:07]} 13. Nxe5 {[%clk 01:20:17]} {[%emt 00:01:55]} Bxe5
{[%clk 01:17:40]} {[%emt 00:00:12]} 1/2-1/2

[Event "Vetern-SM 50+ 2025"]
[Site "Uppsala, Sweden"]
[Date "2025.07.04"]
[Round "7.1"]
[White "Gamback, Bjorn"]
[Black "Eriksson, Kristian"]
[Result "1/2-1/2"]
[TimeControl "90 min for 40 move + 30 min with an increment of 30 sec starting move 1"]
[WhiteTitle "CM"]
[WhiteFideId "1703161"]
[BlackFideId "1705172"]
[WhiteElo "1996"]
[BlackElo "1998"]

1. Nf3 {[%clk 01:30:51]} {[%emt 00:00:08]} Nf6 {[%clk 01:30:35]} {[%emt
00:00:25]} 2. c4 {[%clk 01:31:06]} {[%emt 00:00:15]} g6 {[%clk 01:30:40]}
{[%emt 00:00:25]} 3. b4 {[%clk 01:31:25]} {[%emt 00:00:12]} Bg7 {[%clk
01:30:52]} {[%emt 00:00:17]} 4. Bb2 {[%clk 01:31:49]} {[%emt 00:00:06]} O-O
{[%clk 01:30:51]} {[%emt 00:00:31]} 5. e3 {[%clk 01:32:05]} {[%emt 00:00:15]}
b6 {[%clk 01:30:29]} {[%emt 00:00:52]} 6. Be2 {[%clk 01:31:56]} {[%emt
00:00:38]} c5 {[%clk 01:29:56]} {[%emt 00:01:02]} 7. a3 {[%clk 01:31:43]}
{[%emt 00:00:44]} Nc6 {[%clk 01:28:41]} {[%emt 00:01:44]} 8. b5 {[%clk
01:27:59]} {[%emt 00:04:15]} Na5 {[%clk 01:28:41]} {[%emt 00:00:31]} 9. O-O
{[%clk 01:27:01]} {[%emt 00:01:28]} d5 {[%clk 01:27:45]} {[%emt 00:01:24]} 10.
cxd5 {[%clk 01:27:07]} {[%emt 00:00:25]} Nxd5 {[%clk 01:26:29]} {[%emt
00:01:46]} 11. Bxg7 {[%clk 01:25:19]} {[%emt 00:02:19]} Kxg7 {[%clk 01:26:54]}
{[%emt 00:00:04]} 12. Qc2 {[%clk 01:25:34]} {[%emt 00:00:15]} Bb7 {[%clk
01:23:18]} {[%emt 00:04:06]} 13. d3 {[%clk 01:19:48]} {[%emt 00:06:16]} Rc8
{[%clk 01:16:32]} {[%emt 00:07:16]} 14. Nbd2 {[%clk 01:19:14]} {[%emt
00:01:04]} Qd7 {[%clk 01:13:03]} {[%emt 00:03:58]} 15. Qb2+ {[%clk 01:18:47]}
{[%emt 00:00:58]} Kg8 {[%clk 01:12:31]} {[%emt 00:01:04]} 16. Rfd1 {[%clk
01:17:05]} {[%emt 00:02:10]} Qc7 {[%clk 01:04:57]} {[%emt 00:08:03]} 17. Rac1
{[%clk 01:14:36]} {[%emt 00:03:00]} Qb8 {[%clk 01:04:34]} {[%emt 00:00:53]} 18.
Ne5 {[%clk 01:11:04]} {[%emt 00:04:02]} Nf6 {[%clk 01:01:59]} {[%emt 00:03:05]}
19. Ng4 {[%clk 00:55:38]} {[%emt 00:15:56]} 1/2-1/2

[Event "Vetern-SM 50+ 2025"]
[Site "Uppsala, Sweden"]
[Date "2025.07.04"]
[Round "7.2"]
[White "Karlsson, Patrik"]
[Black "Vernersson, Per"]
[Result "0-1"]
[TimeControl "90 min for 40 move + 30 min with an increment of 30 sec starting move 1"]
[WhiteFideId "1710834"]
[BlackFideId "1700863"]
[WhiteElo "1923"]
[BlackElo "2258"]

1. e4 {[%clk 01:30:53]} {[%emt 00:00:06]} c6 {[%clk 01:30:51]} {[%emt
00:00:10]} 2. d4 {[%clk 01:31:04]} {[%emt 00:00:18]} d5 {[%clk 01:31:15]}
{[%emt 00:00:07]} 3. e5 {[%clk 01:31:21]} {[%emt 00:00:13]} Bf5 {[%clk
01:31:31]} {[%emt 00:00:13]} 4. h4 {[%clk 01:31:32]} {[%emt 00:00:19]} h5
{[%clk 01:31:06]} {[%emt 00:00:57]} 5. c4 {[%clk 01:31:48]} {[%emt 00:00:13]}
e6 {[%clk 01:30:59]} {[%emt 00:00:37]} 6. Nc3 {[%clk 01:31:10]} {[%emt
00:01:08]} Nd7 {[%clk 01:29:59]} {[%emt 00:01:30]} 7. Nge2 {[%clk 01:24:15]}
{[%emt 00:07:24]} dxc4 {[%clk 01:23:27]} {[%emt 00:07:03]} 8. Ng3 {[%clk
01:24:10]} {[%emt 00:00:35]} Bd3 {[%clk 01:22:22]} {[%emt 00:01:35]} 9. Bxd3
{[%clk 01:23:24]} {[%emt 00:01:15]} cxd3 {[%clk 01:22:44]} {[%emt 00:00:09]} 10.
Bg5 {[%clk 01:19:04]} {[%emt 00:04:50]} f6 {[%clk 01:18:14]} {[%emt 00:05:00]}
11. Qxd3 {[%clk 01:14:48]} {[%emt 00:04:46]} Nxe5 {[%clk 01:17:39]} {[%emt
00:01:05]} 12. Qe4 {[%clk 01:14:15]} {[%emt 00:01:02]} Nf7 {[%clk 01:17:26]}
{[%emt 00:00:44]} 13. Qxe6+ {[%clk 01:08:59]} {[%emt 00:05:46]} Qe7 {[%clk
01:15:00]} {[%emt 00:02:56]} 14. Qxe7+ {[%clk 01:08:39]} {[%emt 00:00:49]} Nxe7
{[%clk 01:15:16]} {[%emt 00:00:15]} 15. Bf4 {[%clk 01:08:24]} {[%emt 00:00:44]}
O-O-O {[%clk 01:11:51]} {[%emt 00:03:56]} 16. O-O-O {[%clk 01:01:21]} {[%emt
00:07:33]} Nd5 {[%clk 01:10:20]} {[%emt 00:02:01]} 17. Nxd5 {[%clk 00:56:29]}
{[%emt 00:05:21]} Rxd5 {[%clk 01:10:40]} {[%emt 00:00:11]} 18. Ne4 {[%clk
00:55:18]} {[%emt 00:01:41]} Bb4 {[%clk 01:09:10]} {[%emt 00:02:01]} 19. a3
{[%clk 00:55:17]} {[%emt 00:00:31]} Ba5 {[%clk 01:09:03]} {[%emt 00:00:35]} 20.
b4 {[%clk 00:51:44]} {[%emt 00:04:04]} Bb6 {[%clk 01:09:03]} {[%emt 00:00:30]}
21. Nc5 {[%clk 00:50:45]} {[%emt 00:01:28]} Re8 {[%clk 01:00:38]} {[%emt
00:08:55]} 22. Rhe1 {[%clk 00:42:04]} {[%emt 00:09:11]} Rxe1 {[%clk 01:00:47]}
{[%emt 00:00:21]} 23. Rxe1 {[%clk 00:42:28]} {[%emt 00:00:06]} Bxc5 {[%clk
01:01:07]} {[%emt 00:00:11]} 24. dxc5 {[%clk 00:42:48]} {[%emt 00:00:11]} Kd7
{[%clk 01:01:32]} {[%emt 00:00:05]} 25. Kc2 {[%clk 00:41:27]} {[%emt 00:01:50]}
Nd8 {[%clk 01:00:56]} {[%emt 00:01:05]} 26. Rd1 {[%clk 00:38:27]} {[%emt
00:03:29]} Rxd1 {[%clk 01:01:00]} {[%emt 00:00:27]} 27. Kxd1 {[%clk 00:38:52]}
{[%emt 00:00:05]} Ke6 {[%clk 01:01:06]} {[%emt 00:00:25]} 28. Ke2 {[%clk
00:36:08]} {[%emt 00:03:13]} Kf5 {[%clk 00:58:40]} {[%emt 00:02:57]} 29. Bg3
{[%clk 00:26:23]} {[%emt 00:10:14]} Ke4 {[%clk 00:58:51]} {[%emt 00:00:20]} 30.
Kd2 {[%clk 00:19:16]} {[%emt 00:07:36]} Ne6 {[%clk 00:57:41]} {[%emt 00:01:41]}
31. f3+ {[%clk 00:13:53]} {[%emt 00:05:52]} Kd4 {[%clk 00:57:36]} {[%emt
00:00:35]} 32. Bf2+ {[%clk 00:09:38]} {[%emt 00:04:45]} Kc4 {[%clk 00:57:49]}
{[%emt 00:00:18]} 33. Kc2 {[%clk 00:09:30]} {[%emt 00:00:38]} f5 {[%clk
00:57:49]} {[%emt 00:00:30]} 34. Be3 {[%clk 00:08:35]} {[%emt 00:01:24]} g6
{[%clk 00:57:51]} {[%emt 00:00:29]} 35. g3 {[%clk 00:05:48]} {[%emt 00:03:16]}
a5 {[%clk 00:57:32]} {[%emt 00:00:51]} 36. bxa5 {[%clk 00:04:58]} {[%emt
00:01:19]} Nxc5 {[%clk 00:57:41]} {[%emt 00:00:20]} 37. Bd2 {[%clk 00:02:56]}
{[%emt 00:02:32]} Nb3 {[%clk 00:57:46]} {[%emt 00:00:27]} 38. Bc3 {[%clk
00:02:58]} {[%emt 00:00:27]} Nd4+ {[%clk 00:58:07]} {[%emt 00:00:09]} 39. Bxd4
{[%clk 00:02:10]} {[%emt 00:01:19]} Kxd4 {[%clk 00:58:32]} {[%emt 00:00:05]} 40.
Kb3 {[%clk 00:01:15]} {[%emt 00:01:23]} c5 {[%clk 00:58:06]} {[%emt 00:00:57]}
41. Kc2 {[%clk 00:27:45]} {[%emt 00:03:59]} c4 {[%clk 01:28:23]} {[%emt
00:00:14]} 42. Kd2 {[%clk 00:21:41]} {[%emt 00:06:34]} c3+ {[%clk 01:28:46]}
{[%emt 00:00:07]} 43. Kc2 {[%clk 00:21:55]} {[%emt 00:00:16]} Kc4 {[%clk
01:29:12]} {[%emt 00:00:04]} 44. f4 {[%clk 00:15:44]} {[%emt 00:06:41]} Kd4
{[%clk 01:29:22]} {[%emt 00:00:20]} 45. a4 {[%clk 00:15:34]} {[%emt 00:00:41]}
Kc4 {[%clk 01:29:45]} 0-1

[Event "Vetern-SM 50+ 2025"]
[Site "Uppsala, Sweden"]
[Date "2025.07.04"]
[Round "7.3"]
[White "Olsson, Pether"]
[Black "Bergfalk, Jonas"]
[Result "1/2-1/2"]
[TimeControl "90 min for 40 move + 30 min with an increment of 30 sec starting move 1"]
[WhiteFideId "1726820"]
[BlackFideId "1703986"]
[WhiteElo "2160"]
[BlackElo "2030"]

1. d4 {[%emt 00:00:02]} Nf6 {[%clk 01:30:48]} {[%emt 00:00:10]} 2. Bf4 {[%clk
01:30:55]} {[%emt 00:00:06]} e6 {[%clk 01:30:33]} {[%emt 00:00:45]} 3. e3
{[%clk 01:29:54]} {[%emt 00:01:29]} c5 {[%clk 01:30:20]} {[%emt 00:00:45]} 4.
c3 {[%clk 01:27:03]} {[%emt 00:03:20]} Nc6 {[%clk 01:28:25]} {[%emt 00:02:26]}
5. Nd2 {[%clk 01:25:05]} {[%emt 00:02:24]} b6 {[%clk 01:26:26]} {[%emt
00:02:32]} 6. Bd3 {[%clk 01:23:44]} {[%emt 00:01:50]} Bb7 {[%clk 01:26:25]}
{[%emt 00:00:32]} 7. Ngf3 {[%clk 01:23:58]} {[%emt 00:00:15]} Be7 {[%clk
01:22:55]} {[%emt 00:04:01]} 8. h3 {[%clk 01:23:54]} {[%emt 00:00:34]} d6
{[%clk 01:21:44]} {[%emt 00:01:41]} 9. Qe2 {[%clk 01:20:42]} {[%emt 00:03:41]}
h6 {[%clk 01:19:45]} {[%emt 00:02:31]} 10. O-O {[%clk 01:17:41]} {[%emt
00:03:29]} Qc7 {[%clk 01:13:27]} {[%emt 00:06:49]} 11. e4 {[%clk 01:08:58]}
{[%emt 00:09:13]} e5 {[%clk 01:07:33]} {[%emt 00:06:24]} 12. Bh2 {[%clk
01:01:09]} {[%emt 00:08:19]} O-O {[%clk 01:07:25]} {[%emt 00:00:38]} 13. d5
{[%clk 00:58:50]} {[%emt 00:02:49]} Nb8 {[%clk 01:06:17]} {[%emt 00:01:38]} 14.
c4 {[%clk 00:54:42]} {[%emt 00:04:38]} Nbd7 {[%clk 00:49:30]} {[%emt 00:17:17]}
15. Ne1 {[%clk 00:53:54]} {[%emt 00:01:17]} Rfe8 {[%clk 00:40:18]} {[%emt
00:09:43]} 16. Nc2 {[%clk 00:52:47]} {[%emt 00:01:37]} Bf8 {[%clk 00:39:13]}
{[%emt 00:01:34]} 17. Rae1 {[%clk 00:52:11]} {[%emt 00:01:07]} g6 {[%clk
00:38:44]} {[%emt 00:01:00]} 18. g3 {[%clk 00:46:14]} {[%emt 00:06:26]} Bg7
{[%clk 00:35:09]} {[%emt 00:04:04]} 19. f4 {[%clk 00:45:37]} {[%emt 00:01:08]}
Re7 {[%clk 00:31:28]} {[%emt 00:04:11]} 20. f5 {[%clk 00:42:11]} {[%emt
00:03:57]} Nf8 {[%clk 00:29:28]} {[%emt 00:02:29]} 21. fxg6 {[%clk 00:41:52]}
{[%emt 00:00:49]} fxg6 {[%clk 00:29:29]} {[%emt 00:00:28]} 22. Ne3 {[%clk
00:40:33]} {[%emt 00:01:49]} Bc8 {[%clk 00:24:24]} {[%emt 00:05:35]} 23. g4
{[%clk 00:39:08]} {[%emt 00:01:56]} N8h7 {[%clk 00:22:13]} {[%emt 00:02:41]} 24.
Qg2 {[%clk 00:34:41]} {[%emt 00:04:53]} Bd7 {[%clk 00:21:38]} {[%emt 00:01:09]}
25. Nf3 {[%clk 00:33:52]} {[%emt 00:01:19]} Rf8 {[%clk 00:21:29]} {[%emt
00:00:39]} 26. Bg3 {[%clk 00:30:48]} {[%emt 00:03:34]} Be8 {[%clk 00:15:24]}
{[%emt 00:06:34]} 27. Kh2 {[%clk 00:30:53]} {[%emt 00:00:23]} Kh8 {[%clk
00:12:24]} {[%emt 00:03:33]} 28. Bh4 {[%clk 00:28:08]} {[%emt 00:03:14]} Ref7
{[%clk 00:11:51]} {[%emt 00:01:04]} 29. Bg3 {[%clk 00:25:04]} {[%emt 00:03:34]}
Ng8 {[%clk 00:11:14]} {[%emt 00:01:07]} 30. Be2 {[%clk 00:22:02]} {[%emt
00:03:32]} Bf6 {[%clk 00:11:06]} {[%emt 00:00:38]} 31. h4 {[%clk 00:21:55]}
{[%emt 00:00:38]} Bd8 {[%clk 00:10:37]} {[%emt 00:00:58]} 32. h5 {[%clk
00:21:45]} {[%emt 00:00:41]} Rg7 {[%clk 00:06:53]} {[%emt 00:04:13]} 33. hxg6
{[%clk 00:18:32]} {[%emt 00:03:44]} Bxg6 {[%clk 00:06:59]} {[%emt 00:00:23]} 34.
Nh4 {[%clk 00:17:16]} {[%emt 00:01:46]} Bxh4 {[%clk 00:06:42]} {[%emt
00:00:47]} 35. Bxh4 {[%clk 00:17:45]} {[%emt 00:00:01]} Rxf1 {[%clk 00:06:22]}
{[%emt 00:00:51]} 36. Rxf1 {[%clk 00:17:45]} {[%emt 00:00:24]} Ng5 {[%clk
00:06:08]} {[%emt 00:00:50]} 37. Nf5 {[%clk 00:12:53]} {[%emt 00:05:22]} Bxf5
{[%clk 00:06:12]} {[%emt 00:00:25]} 38. Rxf5 {[%clk 00:13:04]} {[%emt
00:00:19]} Qe7 {[%clk 00:03:13]} {[%emt 00:03:29]} 39. Bxg5 {[%clk 00:09:14]}
{[%emt 00:04:20]} Rxg5 {[%clk 00:03:10]} {[%emt 00:00:33]} 40. Qf2 {[%clk
00:09:04]} {[%emt 00:00:40]} Rxf5 {[%clk 00:01:32]} {[%emt 00:02:08]} 41. Qxf5
{[%clk 00:28:30]} {[%emt 00:11:04]} Qf6 {[%clk 00:31:14]} {[%emt 00:00:48]} 42.
Kg3 {[%clk 00:27:58]} {[%emt 00:01:02]} Qxf5 {[%clk 00:30:45]} {[%emt
00:01:00]} 43. gxf5 {[%clk 00:26:21]} {[%emt 00:02:07]} Nf6 {[%clk 00:30:26]}
{[%emt 00:00:48]} 44. Bf3 {[%clk 00:26:05]} {[%emt 00:00:46]} Kg7 {[%clk
00:29:05]} {[%emt 00:01:51]} 45. Kh4 {[%clk 00:26:18]} {[%emt 00:00:14]} a6
{[%clk 00:25:20]} {[%emt 00:04:18]} 46. a4 {[%clk 00:26:32]} {[%emt 00:00:16]}
Ne8 {[%clk 00:24:26]} {[%emt 00:01:24]} 47. Bd1 {[%clk 00:23:03]} {[%emt
00:03:59]} a5 {[%clk 00:23:51]} {[%emt 00:01:05]} 48. Be2 {[%clk 00:22:18]}
{[%emt 00:01:15]} Nc7 {[%clk 00:24:13]} {[%emt 00:00:08]} 49. Bd3 {[%clk
00:22:35]} {[%emt 00:00:13]} Na6 {[%clk 00:24:17]} {[%emt 00:00:26]} 50. Kh5
{[%clk 00:22:33]} {[%emt 00:00:33]} Nb8 {[%clk 00:23:32]} 1/2-1/2

[Event "Vetern-SM 50+ 2025"]
[Site "Uppsala, Sweden"]
[Date "2025.07.04"]
[Round "7.4"]
[White "Johansen, Peter"]
[Black "Helin, Mikael"]
[Result "1-0"]
[TimeControl "90 min for 40 move + 30 min with an increment of 30 sec starting move 1"]
[BlackTitle "CM"]
[WhiteFideId "1723944"]
[BlackFideId "1703838"]
[WhiteElo "2104"]
[BlackElo "1929"]

1. e4 {[%clk 01:30:55]} {[%emt 00:00:05]} d6 {[%clk 01:30:16]} {[%emt
00:00:45]} 2. Nc3 {[%clk 01:30:32]} {[%emt 00:00:53]} Nf6 {[%clk 01:29:40]}
{[%emt 00:01:06]} 3. g3 {[%clk 01:30:29]} {[%emt 00:00:33]} e5 {[%clk
01:27:43]} {[%emt 00:02:27]} 4. Bg2 {[%clk 01:28:05]} {[%emt 00:02:54]} c5
{[%clk 01:26:10]} {[%emt 00:02:03]} 5. Nge2 {[%clk 01:27:47]} {[%emt 00:00:48]}
g6 {[%clk 01:25:28]} {[%emt 00:01:12]} 6. d3 {[%clk 01:25:41]} {[%emt
00:02:36]} h6 {[%clk 01:25:47]} {[%emt 00:00:11]} 7. h3 {[%clk 01:22:34]}
{[%emt 00:03:37]} Bg7 {[%clk 01:25:51]} {[%emt 00:00:27]} 8. Be3 {[%clk
01:17:31]} {[%emt 00:05:31]} Nc6 {[%clk 01:26:08]} {[%emt 00:00:13]} 9. Qd2
{[%clk 01:04:14]} {[%emt 00:13:48]} Nd4 {[%clk 01:26:19]} {[%emt 00:00:19]} 10.
Nd5 {[%clk 01:01:02]} {[%emt 00:03:42]} Nxd5 {[%clk 01:26:31]} {[%emt
00:00:18]} 11. exd5 {[%clk 01:01:25]} {[%emt 00:00:08]} b5 {[%clk 01:21:30]}
{[%emt 00:05:30]} 12. c3 {[%clk 00:53:27]} {[%emt 00:08:27]} Nf5 {[%clk
01:21:06]} {[%emt 00:00:54]} 13. O-O {[%clk 00:46:16]} {[%emt 00:07:41]} g5
{[%clk 01:13:35]} {[%emt 00:08:01]} 14. a4 {[%clk 00:41:52]} {[%emt 00:04:55]}
b4 {[%clk 01:10:56]} {[%emt 00:03:09]} 15. cxb4 {[%clk 00:40:56]} {[%emt
00:01:27]} cxb4 {[%clk 01:11:15]} {[%emt 00:00:10]} 16. Qxb4 {[%clk 00:40:39]}
{[%emt 00:00:47]} O-O {[%clk 01:01:59]} {[%emt 00:09:46]} 17. Qd2 {[%clk
00:34:56]} {[%emt 00:06:12]} a5 {[%clk 01:01:36]} {[%emt 00:00:53]} 18. Nc3
{[%clk 00:34:29]} {[%emt 00:00:57]} Ne7 {[%clk 00:58:23]} {[%emt 00:03:42]} 19.
d4 {[%clk 00:33:21]} {[%emt 00:01:40]} e4 {[%clk 00:55:26]} {[%emt 00:03:27]}
20. Nxe4 {[%clk 00:28:35]} {[%emt 00:05:16]} f5 {[%clk 00:53:31]} {[%emt
00:02:25]} 21. Nc3 {[%clk 00:27:25]} {[%emt 00:01:40]} f4 {[%clk 00:52:24]}
{[%emt 00:01:37]} 22. gxf4 {[%clk 00:27:46]} {[%emt 00:00:09]} gxf4 {[%clk
00:52:34]} {[%emt 00:00:19]} 23. Bxf4 {[%clk 00:28:13]} {[%emt 00:00:04]} Nf5
{[%clk 00:52:54]} {[%emt 00:00:09]} 24. Ne4 {[%clk 00:25:12]} {[%emt 00:03:31]}
Ra6 {[%clk 00:41:21]} {[%emt 00:12:04]} 25. Ra3 {[%clk 00:24:43]} {[%emt
00:00:58]} Qh4 {[%clk 00:38:14]} {[%emt 00:03:36]} 26. Bg3 {[%clk 00:22:13]}
{[%emt 00:03:02]} Qh5 {[%clk 00:37:09]} {[%emt 00:01:33]} 27. Rd3 {[%clk
00:21:29]} {[%emt 00:01:16]} Rb6 {[%clk 00:36:13]} {[%emt 00:01:26]} 28. Qxa5
{[%clk 00:20:58]} {[%emt 00:01:00]} Nxd4 {[%clk 00:28:37]} {[%emt 00:08:06]} 29.
Qxb6 {[%clk 00:16:32]} {[%emt 00:04:56]} Ne2+ {[%clk 00:26:35]} {[%emt
00:02:33]} 30. Kh2 {[%clk 00:16:52]} {[%emt 00:00:10]} Nf4 {[%clk 00:25:53]}
{[%emt 00:01:12]} 31. Bxf4 {[%clk 00:17:08]} {[%emt 00:00:14]} Rxf4 {[%clk
00:26:18]} {[%emt 00:00:05]} 32. Ng3 {[%clk 00:16:30]} {[%emt 00:01:07]} Qe8
{[%clk 00:20:37]} {[%emt 00:06:12]} 33. Qxd6 {[%clk 00:16:07]} {[%emt
00:00:53]} Rf6 {[%clk 00:19:21]} {[%emt 00:01:45]} 34. Qc5 {[%clk 00:15:56]}
{[%emt 00:00:40]} Bd7 {[%clk 00:16:07]} {[%emt 00:03:46]} 35. b3 {[%clk
00:15:55]} {[%emt 00:00:30]} h5 {[%clk 00:15:56]} {[%emt 00:00:41]} 36. Qe3
{[%clk 00:14:50]} {[%emt 00:01:36]} Qf7 {[%clk 00:14:22]} {[%emt 00:02:03]} 37.
Ne4 {[%clk 00:14:47]} {[%emt 00:00:33]} Rf4 {[%clk 00:12:03]} {[%emt 00:02:49]}
38. Nc5 {[%clk 00:14:50]} {[%emt 00:00:28]} Bc8 {[%clk 00:09:11]} {[%emt
00:03:21]} 39. d6 {[%clk 00:14:53]} {[%emt 00:00:28]} 1-0

[Event "Vetern-SM 50+ 2025"]
[Site "Uppsala, Sweden"]
[Date "2025.07.04"]
[Round "7.5"]
[White "Persson, Lars"]
[Black "Gromark, Jonas"]
[Result "0-1"]
[TimeControl "90 min for 40 move + 30 min with an increment of 30 sec starting move 1"]
[WhiteFideId "1703579"]
[BlackFideId "137122733"]
[WhiteElo "2041"]
[BlackElo "1822"]

1. d4 {[%clk 01:28:33]} {[%emt 00:02:25]} Nf6 {[%clk 01:30:30]} {[%emt
00:00:30]} 2. Bg5 {[%clk 01:29:01]} {[%emt 00:00:04]} c5 {[%clk 01:30:20]}
{[%emt 00:00:39]} 3. Bxf6 {[%clk 01:26:59]} {[%emt 00:02:32]} gxf6 {[%clk
01:30:12]} {[%emt 00:00:38]} 4. d5 {[%clk 01:27:09]} {[%emt 00:00:20]} Qb6
{[%clk 01:27:40]} {[%emt 00:03:02]} 5. Qc1 {[%clk 01:27:04]} {[%emt 00:00:36]}
f5 {[%clk 01:27:31]} {[%emt 00:00:39]} 6. Nc3 {[%clk 01:25:18]} {[%emt
00:02:16]} Bg7 {[%clk 01:26:25]} {[%emt 00:01:35]} 7. e3 {[%clk 01:24:49]}
{[%emt 00:00:59]} O-O {[%clk 01:24:12]} {[%emt 00:02:42]} 8. a4 {[%clk
01:24:57]} {[%emt 00:00:23]} Qb4 {[%clk 01:18:53]} {[%emt 00:05:49]} 9. Nge2
{[%clk 01:13:30]} {[%emt 00:11:57]} d6 {[%clk 01:13:03]} {[%emt 00:06:20]} 10.
Ra3 {[%clk 01:12:58]} {[%emt 00:01:03]} Nd7 {[%clk 01:08:53]} {[%emt 00:04:39]}
11. Rb3 {[%clk 01:12:48]} {[%emt 00:00:40]} Qa5 {[%clk 01:09:00]} {[%emt
00:00:23]} 12. Rb5 {[%clk 01:12:37]} {[%emt 00:00:41]} Qc7 {[%clk 01:08:27]}
{[%emt 00:01:03]} 13. Nf4 {[%clk 01:08:40]} {[%emt 00:04:26]} a6 {[%clk
01:03:09]} {[%emt 00:05:49]} 14. Rb3 {[%clk 01:08:30]} {[%emt 00:00:40]} Ne5
{[%clk 00:58:14]} {[%emt 00:05:25]} 15. Nh5 {[%clk 01:05:42]} {[%emt 00:03:18]}
Bd7 {[%clk 00:48:15]} {[%emt 00:10:29]} 16. Be2 {[%clk 00:49:57]} {[%emt
00:16:15]} c4 {[%clk 00:47:23]} {[%emt 00:01:22]} 17. Ra3 {[%clk 00:49:55]}
{[%emt 00:00:31]} b5 {[%clk 00:47:16]} {[%emt 00:00:37]} 18. axb5 {[%clk
00:49:26]} {[%emt 00:01:00]} axb5 {[%clk 00:47:40]} {[%emt 00:00:06]} 19. Rxa8
{[%clk 00:47:46]} {[%emt 00:02:10]} Rxa8 {[%clk 00:48:09]} {[%emt 00:00:01]} 20.
e4 {[%clk 00:43:07]} {[%emt 00:05:08]} b4 {[%clk 00:46:52]} {[%emt 00:01:48]}
21. Qg5 {[%clk 00:39:41]} {[%emt 00:03:56]} Ng6 {[%clk 00:46:53]} {[%emt
00:00:29]} 22. Nd1 {[%clk 00:29:17]} {[%emt 00:10:53]} fxe4 {[%clk 00:44:43]}
{[%emt 00:02:40]} 23. Nxg7 {[%clk 00:19:39]} {[%emt 00:10:08]} Kxg7 {[%clk
00:45:12]} {[%emt 00:00:02]} 24. h4 {[%clk 00:18:51]} {[%emt 00:01:18]} h6
{[%clk 00:35:22]} {[%emt 00:10:19]} 25. Qg3 {[%clk 00:17:54]} {[%emt 00:01:27]}
Kh7 {[%clk 00:34:03]} {[%emt 00:01:50]} 26. h5 {[%clk 00:15:19]} {[%emt
00:03:05]} Ne5 {[%clk 00:25:18]} {[%emt 00:09:15]} 27. Qh4 {[%clk 00:07:37]}
{[%emt 00:08:11]} e6 {[%clk 00:24:32]} {[%emt 00:01:17]} 28. dxe6 {[%clk
00:02:03]} {[%emt 00:06:03]} Bc6 {[%clk 00:21:16]} {[%emt 00:03:46]} 29. Qf6
{[%clk 00:02:24]} {[%emt 00:00:10]} fxe6 {[%clk 00:19:50]} {[%emt 00:01:56]} 30.
Qxe6 {[%emt 00:00:18]} Qd7 {[%clk 00:16:39]} {[%emt 00:03:39]} 31. Qxd7+ {[%clk
00:02:12]} {[%emt 00:00:55]} Bxd7 {[%clk 00:17:07]} {[%emt 00:00:03]} 32. Rh4
{[%clk 00:02:25]} {[%emt 00:00:16]} d5 {[%emt 00:02:41]} 33. Ne3 {[%clk
00:02:40]} {[%emt 00:00:14]} Be6 {[%clk 00:13:08]} {[%emt 00:02:19]} 34. Rf4
{[%clk 00:02:26]} {[%emt 00:00:44]} Kg7 {[%clk 00:09:16]} {[%emt 00:04:23]} 35.
Nf5+ {[%clk 00:02:37]} {[%emt 00:00:19]} Bxf5 {[%clk 00:07:48]} {[%emt
00:01:57]} 36. Rxf5 {[%clk 00:03:05]} {[%emt 00:00:03]} Re8 {[%clk 00:07:25]}
{[%emt 00:00:52]} 37. Kd2 {[%clk 00:03:01]} {[%emt 00:00:35]} d4 {[%clk
00:07:08]} {[%emt 00:00:46]} 38. Rf4 {[%clk 00:01:53]} {[%emt 00:01:37]} c3+
{[%clk 00:04:30]} {[%emt 00:03:10]} 39. bxc3 {[%clk 00:02:13]} {[%emt
00:00:10]} bxc3+ {[%clk 00:04:52]} {[%emt 00:00:08]} 40. Kc1 {[%clk 00:00:41]}
{[%emt 00:02:03]} d3 {[%clk 00:02:29]} {[%emt 00:08:36]} 41. Bd1 {[%clk
00:05:09]} {[%emt 00:26:01]} Rb8 {[%clk 00:29:28]} {[%emt 00:03:32]} 42. Rxe4
{[%clk 00:00:44]} {[%emt 00:04:55]} d2# {[%clk 00:29:44]} {[%emt 00:00:13]} 0-1